bitfinex-derivatives/quotes_SOLF0:USTF0_20251208
["timestamp","ask_amount","ask_price","bid_price","bid_amount"]
[1765171196237,3.16982236,134.94,134.92,3.20148794]
[1765171196633,0.04982236,134.94,134.93,5.58589362]
[1765171198138,0.04982236,134.94,134.93,3.15]
[1765171199337,6.89176164,135.0,134.93,4.63]
[1765171199539,3.12,134.99,134.97,3.15]
[1765171200341,3.12,134.99,134.97,3.19832984]
[1765171200540,3.12,134.98,134.97,0.04832984]
[1765171201345,8.73652786,134.98,134.97,0.04832984]
[1765171201534,11.17242148,134.98,134.97,0.04832984]
[1765171203543,8.73652786,134.98,134.97,0.04832984]
[1765171203847,9.84210568,134.99,134.97,3.19832984]
[1765171204448,9.84210568,134.99,134.97,0.04832984]
[1765171204751,3.16,134.98,134.97,0.04832984]
[1765171206541,8.73815894,134.98,134.97,0.04832984]
[1765171207049,3.16,134.98,134.97,0.04832984]
[1765171207549,8.73789149,134.98,134.97,0.04832984]
[1765171207948,3.16,134.96,134.92,3.18]
[1765171208547,3.16,134.96,134.91,68.93589362]
[1765171208752,3.16,134.94,134.91,66.5]
[1765171209050,3.20921368,134.94,134.91,66.55602339]
[1765171209545,0.04921368,134.94,134.92,3.18]
[1765171210153,0.04921368,134.94,134.93,5.61589362]
[1765171214750,6.668,134.98,134.93,5.61589362]
[1765171214951,3.16,135.02,134.98,3.18]
[1765171215157,106.12289362,135.03,134.98,3.18]
[1765171215158,8.73323291,135.01,134.98,3.18]
[1765171215356,3.16,135.01,134.98,3.18]
[1765171215856,3.21399279,135.01,134.98,3.22893766]
[1765171216251,3.21399279,135.01,134.98,0.04893766]
[1765171216552,3.21399279,135.01,134.98,3.22893766]
[1765171218267,0.05399279,135.01,135.0,3.29]
[1765171220055,3.09,135.07,135.0,3.29]
[1765171220354,3.09,135.08,135.04,3.29]
[1765171220555,5.57082638,135.07,135.04,3.29]
[1765171220752,3.09,135.08,135.04,3.29]
[1765171221154,0.05354941,135.07,135.05,0.05062933]
[1765171221864,3.14354941,135.07,135.05,0.05062933]
[1765171222665,3.14354941,135.07,135.05,3.34062933]
[1765171222964,3.14354941,135.07,135.05,0.05062933]
[1765171223757,0.05354941,135.07,135.05,3.34062933]
[1765171223961,0.05354941,135.07,135.05,5.77652295]
[1765171224164,0.05354941,135.07,135.06,3.29]
[1765171229966,3.14354941,135.07,135.05,3.34062933]
[1765171230172,0.05354941,135.07,135.05,3.34062933]
[1765171231059,3.14354941,135.07,135.05,3.34062933]
[1765171231265,0.05354941,135.07,135.05,3.34062933]
[1765171232774,3.14354941,135.07,135.05,3.34062933]
[1765171234171,0.05354941,135.07,135.05,3.34062933]
[1765171234771,3.14354941,135.07,135.05,3.34062933]
[1765171235377,0.05354941,135.07,135.05,3.34062933]
[1765171240777,3.14354941,135.07,135.05,3.34062933]
[1765171241176,0.05354941,135.07,135.05,3.34062933]
[1765171243880,0.05354941,135.07,135.05,7.13754728]
[1765171244083,0.05354941,135.07,135.06,3.29]
[1765171244283,3.09,135.11,135.06,3.29]
[1765171245183,0.05369358,135.1,135.06,3.29]
[1765171245385,3.14369358,135.1,135.06,3.29]
[1765171248888,3.14369358,135.1,135.05,3.38062933]
[1765171249287,3.23,135.09,135.05,0.05062933]
[1765171249689,3.23,135.09,135.05,3.38062933]
[1765171251307,0.05369358,135.1,135.05,3.38062933]
[1765171252102,3.28369358,135.1,135.05,3.38062933]
[1765171255603,3.23,135.09,135.05,3.38062933]
[1765171257913,3.08,135.08,135.05,3.38062933]
[1765171258099,3.08,135.08,135.05,0.05062933]
[1765171259610,3.08,135.07,135.05,0.05062933]
[1765171260410,3.08,135.05,134.98,13.76441795]
[1765171260617,3.08,135.05,134.99,3.3]
[1765171261003,3.08,135.05,135.0,6.6665]
[1765171261311,3.08,135.07,135.01,3.3]
[1765171261514,0.05346535,135.05,135.03,3.35356768]
[1765171262013,3.13346535,135.05,135.03,3.35356768]
[1765171262510,3.13346535,135.05,135.03,0.05356768]
[1765171266707,8.66411099,135.04,135.03,0.05356768]
[1765171267011,12.46102894,135.04,135.03,0.05356768]
[1765171267513,17.40669122,135.04,135.03,0.05356768]
[1765171268317,3.08,135.02,134.98,63.28]
[1765171268816,3.08,135.02,134.99,3.3]
[1765171269009,3.08,135.02,134.98,66.58]
[1765171269207,0.04886712,135.01,134.99,0.05183397]
[1765171269412,3.12886712,135.01,134.99,0.05183397]
[1765171269713,3.12886712,135.01,134.99,3.35183397]
[1765171270718,0.04886712,135.01,134.99,3.35183397]
[1765171271017,66.38,135.06,134.99,3.35183397]
[1765171271211,5.57585558,135.05,134.99,3.35183397]
[1765171271412,3.08,135.05,134.99,3.35183397]
[1765171271716,3.08,135.05,135.0,3.3]
[1765171271919,3.12673138,135.04,135.0,3.3]
[1765171272118,3.12673138,135.04,135.01,0.05285323]
[1765171274119,3.08,135.02,135.01,0.05285323]
[1765171277015,8.65245618,135.02,135.01,0.05285323]
[1765171279217,3.36,135.01,134.96,104.4455538]
[1765171279728,3.36,135.0,134.96,3.05]
[1765171280118,3.36,134.98,134.97,0.05133006]
[1765171285733,3.36,134.96,134.92,3.05]
[1765171286728,0.05152578,134.95,134.93,3.09963416]
[1765171290733,0.05152578,134.95,134.93,6.89655211]
[1765171290943,0.05152578,134.95,134.94,3.05]
[1765171292843,0.05152578,134.95,134.94,5.48400351]
[1765171295542,116.9917,135.06,134.99,3.05]
[1765171295543,3.36,135.03,134.99,3.05]
[1765171295742,3.36,135.03,135.01,3.05]
[1765171295941,3.36,135.03,135.02,2.43400351]
[1765171299644,3.41373495,135.04,135.02,5.48400351]
[1765171299846,0.05373495,135.04,135.02,5.48400351]
[1765171302341,3.41373495,135.04,135.02,2.43400351]
[1765171302545,3.41373495,135.04,135.02,5.48400351]
[1765171304554,3.41373495,135.04,135.02,2.43400351]
[1765171304758,3.41373495,135.04,135.01,0.05247955]
[1765171307268,3.41373495,135.04,135.01,3.10247955]
[1765171307569,3.41373495,135.04,135.02,5.48400351]
[1765171307768,0.05373495,135.04,135.03,3.05]
[1765171313665,3.40373495,135.04,135.02,3.24]
[1765171316279,0.05373495,135.04,135.02,3.24]
[1765171320284,3.29373495,135.04,135.02,3.24]
[1765171320580,0.05373495,135.04,135.02,3.07]
[1765171320782,0.05373495,135.04,135.03,5.50400351]
[1765171321371,9.9025,135.09,135.04,3.07]
[1765171321973,9.9025,135.09,135.06,3.07]
[1765171321974,3.24,135.09,135.06,3.07]
[1765171322575,3.29290275,135.09,135.06,3.1246418]
[1765171323680,3.29290275,135.09,135.06,0.0546418]
[1765171324183,3.24,135.08,135.06,0.0546418]
[1765171325180,3.24,135.08,135.06,3.1246418]
[1765171326884,9.903,135.08,135.06,0.0546418]
[1765171327190,5.67400351,135.07,135.06,0.0546418]
[1765171327489,3.24,135.06,135.01,5.50400351]
[1765171327782,3.24,135.04,134.99,3.07]
[1765171327984,3.24,135.02,134.99,3.07]
[1765171328583,3.29452966,135.02,134.99,3.12294793]
[1765171329688,0.05452966,135.02,134.99,3.12294793]
[1765171330581,0.05452966,135.02,135.01,3.07]
[1765171331889,3.29452966,135.02,135.0,5.50400351]
[1765171332092,0.05452966,135.02,135.0,5.50400351]
[1765171332489,0.05452966,135.02,135.01,3.07]
[1765171336787,9.9044,135.05,135.01,3.07]
[1765171337893,0.04676275,135.04,135.01,3.07]
[1765171341897,6.71176275,135.04,135.01,3.07]
[1765171343701,5.58847563,135.03,135.01,3.07]
[1765171343892,9.79176275,135.04,135.01,3.07]
[1765171344094,5.58864685,135.03,135.01,3.07]
[1765171344290,9.79176275,135.04,135.01,3.07]
[1765171344493,5.58936507,135.03,135.01,3.07]
[1765171344694,9.79176275,135.04,135.01,3.07]
[1765171345000,5.58919156,135.03,135.01,3.07]
[1765171345190,9.79176275,135.04,135.01,3.07]
[1765171345387,5.58907193,135.03,135.01,3.07]
[1765171345689,9.79176275,135.04,135.01,3.07]
[1765171345990,5.59046444,135.03,135.01,3.07]
[1765171346286,9.79176275,135.04,135.01,3.07]
[1765171346586,5.59104225,135.03,135.01,3.07]
[1765171346788,9.7454,135.03,134.99,0.05294793]
[1765171346986,5.59046317,135.02,134.99,3.18294793]
[1765171347190,3.08,135.02,134.99,3.18294793]
[1765171350499,6.6654,135.03,134.99,3.18294793]
[1765171350696,9.7454,135.03,135.0,3.13]
[1765171352398,3.08,135.03,135.0,3.13]
[1765171352604,3.12676275,135.04,135.0,3.13]
[1765171352802,5.59063488,135.03,135.0,3.13]
[1765171352995,0.04676275,135.04,135.0,3.13]
[1765171359511,0.04676275,135.04,135.0,9.7966]
[1765171359806,0.04676275,135.04,135.01,3.13]
[1765171360702,0.04676275,135.04,135.02,3.13]
[1765171368215,3.14676275,135.04,135.02,3.13]
[1765171368710,3.14676275,135.04,134.99,3.35294793]
[1765171368711,3.1,135.03,134.99,3.35294793]
[1765171369103,3.1,135.03,134.99,0.05294793]
[1765171369308,3.1,135.0,134.99,0.05294793]
[1765171370814,19.15431975,135.0,134.94,63.28]
[1765171371015,9.7671,135.0,134.95,3.3]
[1765171371314,0.0540795,135.01,134.95,3.3]
[1765171371516,8.68699569,135.0,134.95,3.3]
[1765171371715,3.1,135.0,134.95,3.3]
[1765171371918,3.1,135.0,134.97,3.3]
[1765171380526,3.26,134.99,134.97,3.3]
[1765171381023,0.0540795,135.01,134.97,3.3]
[1765171381415,3.3140795,135.01,134.97,3.3]
[1765171381727,3.26,135.0,134.97,3.3]
[1765171381915,3.85338653,135.01,134.97,3.3]
[1765171382119,7.11338653,135.01,134.97,3.3]
[1765171382425,3.26,135.0,134.97,3.3]
[1765171383034,3.26,134.97,134.93,3.18]
[1765171383329,3.26,134.96,134.93,3.18]
[1765171383728,3.26,134.97,134.93,3.18]
[1765171384136,0.04749929,134.96,134.94,3.23359295]
[1765171389029,0.04749929,134.96,134.95,6.97930703]
[1765171391427,3.30749929,134.96,134.94,0.05359295]
[1765171392936,3.30749929,134.96,134.94,3.23359295]
[1765171393636,0.04749929,134.96,134.94,3.23359295]
[1765171393937,0.04749929,134.96,134.95,6.97930703]
[1765171400832,9.7564,135.01,134.96,3.27]
[1765171401841,0.04796737,135.0,134.97,0.05044447]
[1765171402040,0.04796737,135.0,134.98,3.27]
[1765171402742,3.13796737,135.0,134.97,0.05044447]
[1765171403645,9.80496737,135.0,134.97,0.05044447]
[1765171403839,3.09,134.99,134.97,0.05044447]
[1765171405648,3.09,134.99,134.97,3.32044447]
[1765171405943,0.04796737,135.0,134.97,3.32044447]
[1765171407043,0.04796737,135.0,134.98,3.27]
[1765171407244,0.04796737,135.0,134.99,7.06930703]
[1765171414252,6.6646,135.05,135.0,3.27]
[1765171414444,5.56812634,135.04,135.0,3.27]
[1765171414641,9.7546,135.05,135.0,3.27]
[1765171415239,0.05545172,135.04,135.02,3.27]
[1765171416759,0.05545172,135.04,135.02,5.70086931]
[1765171417061,0.05545172,135.04,135.03,3.27]
[1765171420161,6.6626,135.09,135.03,3.27]
[1765171420362,9.7526,135.09,135.06,5.70086931]
[1765171420957,9.80374515,135.09,135.06,5.7526004]
[1765171421554,9.7531,135.08,135.06,0.05173109]
[1765171424258,3.09,135.07,135.06,0.05173109]
[1765171429165,5.52086931,135.07,135.06,0.05173109]
[1765171429363,3.32114515,135.09,135.06,3.11173109]
[1765171432564,3.32114515,135.09,135.06,0.05173109]
[1765171432769,5.75201446,135.09,135.06,0.05173109]
[1765171432964,3.27,135.08,135.06,0.05173109]
[1765171434875,9.933,135.08,135.06,0.05173109]
[1765171436080,3.27,135.07,135.06,0.05173109]
[1765171436377,9.933,135.08,135.06,3.11173109]
[1765171436976,9.933,135.08,135.06,0.05173109]
[1765171439274,3.21,135.07,135.06,0.05173109]
[1765171441181,0.05114515,135.09,135.06,5.7326004]
[1765171441382,0.05114515,135.09,135.07,3.25]
[1765171442880,3.26114515,135.09,135.06,5.7326004]
[1765171443082,3.26114515,135.09,135.07,3.25]
[1765171443778,9.92364515,135.09,135.07,3.25]
[1765171444978,6.71364515,135.09,135.07,3.25]
[1765171445179,0.05114515,135.09,135.08,5.68086931]
[1765171446079,3.26114515,135.09,135.08,2.43086931]
[1765171446280,3.26114515,135.09,135.06,0.05173109]
[1765171446975,3.21,135.07,135.06,0.05173109]
[1765171447279,3.21,135.05,135.02,3.25]
[1765171447675,6.6652,135.04,135.02,3.25]
[1765171448276,0.05537327,135.04,135.02,3.29882769]
[1765171450584,3.26537327,135.04,135.02,3.29882769]
[1765171452389,3.26537327,135.04,135.02,0.04882769]
[1765171452694,3.21,135.03,135.02,0.04882769]
[1765171457493,12.36114258,135.04,135.02,0.04882769]
[1765171457995,3.06,135.03,135.02,0.04882769]
[1765171465902,3.06,135.03,134.98,72.43846931]
[1765171465903,3.06,135.01,134.98,66.45]
[1765171466600,3.06,135.0,134.98,63.34]
[1765171466797,3.06,134.99,134.96,3.11]
[1765171466999,3.11331065,134.99,134.96,3.1618069]
[1765171467602,9.78071065,134.99,134.96,3.1618069]
[1765171468105,0.05331065,134.99,134.96,3.1618069]
[1765171468696,0.05331065,134.99,134.96,9.8304069]
[1765171469000,0.05331065,134.99,134.97,3.11]
[1765171474203,0.05331065,134.99,134.97,5.54086931]
[1765171475004,0.05331065,134.99,134.98,3.11]
[1765171477809,3.11331065,134.99,134.97,5.54086931]
[1765171478715,3.11331065,134.99,134.97,3.11]
[1765171478900,3.06,134.98,134.96,3.1618069]
[1765171480213,3.06,134.97,134.96,0.0518069]
[1765171480410,9.7279,134.98,134.96,3.1618069]
[1765171482518,3.06,134.97,134.96,0.0518069]
[1765171483222,9.7279,134.98,134.96,0.0518069]
[1765171484213,3.06,134.98,134.96,3.1618069]
[1765171486619,9.728,134.98,134.96,0.0518069]
[1765171486832,3.06,134.97,134.96,0.0518069]
[1765171490727,9.978,134.98,134.96,3.1318069]
[1765171491824,3.31,134.97,134.96,0.0518069]
[1765171505840,3.27,134.95,134.93,63.3]
[1765171506841,3.31796045,134.95,134.93,63.35230528]
[1765171507436,6.6697,134.94,134.93,63.35230528]
[1765171507843,6.6697,134.94,134.93,66.66230528]
[1765171508739,9.9397,134.94,134.93,63.35230528]
[1765171509335,9.9397,134.94,134.93,0.05230528]
[1765171509531,3.27,134.92,134.88,3.31]
[1765171510438,3.27,134.91,134.88,3.31]
[1765171510745,3.32389767,134.91,134.88,3.3640779]
[1765171512541,3.27,134.9,134.88,3.3640779]
[1765171513643,9.9418,134.9,134.88,3.3640779]
[1765171515043,6.6718,134.9,134.88,3.3640779]
[1765171515544,9.9418,134.9,134.88,3.3640779]
[1765171517947,3.13,134.89,134.88,0.0540779]
[1765171518449,9.8018,134.9,134.88,3.1540779]
[1765171522345,9.8018,134.9,134.88,0.0540779]
[1765171522346,3.13,134.89,134.88,0.0540779]
[1765171528357,9.8018,134.9,134.88,3.1540779]
[1765171534356,3.13,134.89,134.88,0.0540779]
[1765171538365,9.8018,134.9,134.88,3.1540779]
[1765171538665,9.8018,134.9,134.89,2.43609186]
[1765171541970,0.05389767,134.91,134.9,3.1]
[1765171543070,3.13,134.95,134.9,3.1]
[1765171543265,3.13,134.95,134.92,2.43609186]
[1765171543462,9.8,134.94,134.92,2.43609186]
[1765171543661,3.13,134.93,134.92,2.43609186]
[1765171544254,3.13,134.92,134.91,2.49296127]
[1765171544464,3.13,134.92,134.91,0.05686941]
[1765171545263,6.6704,134.93,134.88,2.43609186]
[1765171545264,3.13,134.9,134.88,2.43609186]
[1765171546160,3.18516518,134.9,134.88,2.48612379]
[1765171546561,3.13,134.89,134.88,2.48612379]
[1765171547065,3.18516518,134.9,134.88,5.58612379]
[1765171550977,0.05516518,134.9,134.89,3.12]
[1765171556277,6.90897942,134.94,134.93,3.12]
[1765171556466,3.19,134.96,134.93,3.12]
[1765171556672,3.19,134.96,134.95,2.43609186]
[1765171556867,8.75895057,134.96,134.95,2.43609186]
[1765171557584,15.42805057,134.96,134.95,2.43609186]
[1765171560483,15.42805057,134.96,134.95,5.55609186]
[1765171560484,5.56895057,134.96,134.95,5.55609186]
[1765171560683,3.23784507,134.97,134.95,2.43609186]
[1765171561582,9.90644507,134.97,134.95,2.43609186]
[1765171561778,0.04784507,134.97,134.96,3.12]
[1765171563084,3.20784507,134.97,134.95,2.43609186]
[1765171563380,3.20784507,134.97,134.96,3.33]
[1765171563381,0.04784507,134.97,134.96,3.33]
[1765171563582,3.16,135.01,134.96,3.33]
[1765171563788,3.16,135.01,135.0,2.43609186]
[1765171564489,9.8265,135.01,135.0,2.43609186]
[1765171566390,3.16,135.01,135.0,2.43609186]
[1765171569287,3.16,135.01,134.99,0.05112385]
[1765171570794,3.21019628,135.02,134.99,3.38112385]
[1765171571384,3.21019628,135.02,135.0,5.76609186]
[1765171575604,3.21019628,135.02,135.0,2.43609186]
[1765171576499,3.21019628,135.02,134.99,0.05112385]
[1765171577500,9.87619628,135.02,134.99,0.05112385]
[1765171577802,3.16,135.01,134.99,0.05112385]
[1765171578399,9.8265,135.01,134.99,0.05112385]
[1765171578604,3.24,134.99,134.95,3.29]
[1765171579500,3.24,134.98,134.95,3.29]
[1765171579703,3.28786304,134.98,134.96,0.05146981]
[1765171585711,3.24,134.97,134.96,0.05146981]
[1765171587211,3.24,134.96,134.92,5.72609186]
[1765171587412,3.24,134.95,134.91,6.6708]
[1765171587614,3.24,134.95,134.91,9.9608]
[1765171588109,3.24,134.95,134.92,3.29]
[1765171588410,3.28914386,134.95,134.92,3.33761248]
[1765171590810,3.28914386,134.95,134.93,3.29]
[1765171591912,0.04914386,134.95,134.93,3.29]
[1765171593108,3.28914386,134.95,134.93,3.29]
[1765171594712,6.6698,134.94,134.92,0.04761248]
[1765171595015,3.24,134.93,134.92,0.04761248]
[1765171597813,3.24,134.92,134.89,66.65]
[1765171598010,5.67609186,134.92,134.89,63.36]
[1765171598215,3.24,134.91,134.87,3.29]
[1765171598912,0.04875235,134.9,134.88,3.34259899]
[1765171599715,3.28875235,134.9,134.88,3.34259899]
[1765171601215,3.28875235,134.9,134.88,0.05259899]
[1765171603716,0.04875235,134.9,134.88,3.34259899]
[1765171605716,0.04875235,134.9,134.89,7.09695616]
[1765171606013,3.24,134.96,134.9,9.9615]
[1765171606229,3.24,134.96,134.91,3.29]
[1765171606903,3.24,134.94,134.92,3.34079187]
[1765171608011,0.04700284,134.95,134.92,3.34079187]
[1765171609513,0.04700284,134.95,134.92,10.01129187]
[1765171610016,0.04700284,134.95,134.93,3.36]
[1765171610725,0.04700284,134.95,134.93,10.0301]
[1765171611017,0.04700284,134.95,134.94,3.36]
[1765171613912,3.1,135.0,134.95,3.36]
[1765171614118,9.7664,135.01,134.96,3.36]
[1765171614426,8.71648581,135.0,134.96,3.36]
[1765171614730,3.1,135.0,134.96,3.36]
[1765171614914,0.04883604,134.99,134.97,3.4141273]
[1765171615826,3.14883604,134.99,134.97,0.0541273]
[1765171620834,3.16,134.98,134.97,0.0541273]
[1765171621834,0.04883604,134.99,134.97,3.1941273]
[1765171622319,3.20883604,134.99,134.97,3.1941273]
[1765171627336,0.04883604,134.99,134.97,3.1941273]
[1765171630731,0.04883604,134.99,134.97,7.00108346]
[1765171630933,0.04883604,134.99,134.98,3.14]
[1765171639946,3.21883604,134.99,134.97,0.0541273]
[1765171640145,3.21883604,134.99,134.97,3.2641273]
[1765171642656,0.04883604,134.99,134.97,3.2641273]
[1765171643957,0.04883604,134.99,134.97,7.07108346]
[1765171644155,0.04883604,134.99,134.98,3.21]
[1765171658878,10.06892376,135.05,134.99,3.21]
[1765171659076,8.84026114,135.04,135.01,3.21]
[1765171659276,5.67026114,135.03,135.01,3.21]
[1765171659575,5.67026114,135.02,135.01,3.21]
[1765171660774,5.67026114,135.02,135.01,5.64145004]
[1765171662178,0.04904625,135.03,135.02,3.21]
[1765171662375,5.71848401,135.03,135.02,3.21]
[1765171665571,3.17,135.02,135.0,3.26163637]
[1765171665767,3.17,135.02,135.0,0.05163637]
[1765171669376,3.17,135.02,135.0,3.39163637]
[1765171669777,3.17,135.02,135.0,0.05163637]
[1765171670874,8.99074184,135.01,135.0,0.05163637]
[1765171677876,8.99384725,135.01,135.0,0.05163637]
[1765171695800,8.93384725,135.01,135.0,3.40163637]
[1765171696193,8.93384725,135.01,135.0,0.05163637]
[1765171723230,8.93384725,135.01,135.0,3.20163637]
[1765171723832,8.93384725,135.01,135.0,0.05163637]
[1765171746751,3.33,134.99,134.95,9.8691]
[1765171746963,3.33,134.97,134.95,9.8691]
[1765171747651,3.33,134.97,134.94,3.2]
[1765171747852,3.33,134.97,134.93,219.92707996]
[1765171747853,3.38664186,134.97,134.95,0.05093616]
[1765171749055,3.38664186,134.97,134.95,3.25093616]
[1765171751148,3.38664186,134.97,134.95,0.05093616]
[1765171752960,10.05494186,134.97,134.95,0.05093616]
[1765171753162,8.97864494,134.96,134.95,0.05093616]
[1765171753460,3.33,134.96,134.95,0.05093616]
[1765171753658,8.97693502,134.96,134.95,0.05093616]
[1765171755455,3.33,134.96,134.95,0.05093616]
[1765171759757,6.6701,134.94,134.89,6.6718]
[1765171759958,8.96854295,134.93,134.89,3.14]
[1765171760155,3.33,134.93,134.89,3.14]
[1765171760861,0.05599385,134.92,134.91,3.14]
[1765171761448,3.38599385,134.92,134.91,3.14]
[1765171762765,0.05599385,134.92,134.91,3.14]
[1765171767966,0.05599385,134.92,134.91,6.9405381]
[1765171771466,0.05599385,134.92,134.91,70.2405381]
[1765171774567,3.38599385,134.92,134.9,9.85986298]
[1765171774774,3.38599385,134.92,134.9,73.15986298]
[1765171774967,3.38599385,134.92,134.91,3.14]
[1765171775458,0.05599385,134.92,134.91,3.14]
[1765171782673,0.05599385,134.92,134.91,5.57525809]
[1765171800999,3.23,134.96,134.94,3.29]
[1765171801299,5.67717129,134.95,134.94,3.29]
[1765171801803,7.129e-05,134.95,134.94,9.9597]
[1765171802096,0.05590492,134.96,134.95,3.29]
[1765171802298,0.05590492,134.96,134.95,5.72525809]
[1765171814710,3.28590492,134.96,134.95,5.72525809]
[1765171815411,0.05590492,134.96,134.95,5.72525809]
[1765171819813,3.30590492,134.96,134.95,5.72525809]
[1765171820015,0.05590492,134.96,134.95,5.72525809]
[1765171821015,3.25,135.0,134.97,3.11]
[1765171821211,5.54789301,134.99,134.98,5.54525809]
[1765171823614,3.30157819,135.0,134.98,5.54525809]
[1765171824311,5.54606099,134.99,134.98,5.54525809]
[1765171826824,0.05157819,135.0,134.99,3.11]
[1765171832925,15.32216206,135.06,134.99,3.11]
[1765171833229,3.25,135.05,135.04,2.43525809]
[1765171833527,3.25,135.05,135.02,5.54525809]
[1765171834227,3.30532716,135.05,135.02,5.59575853]
[1765171837126,3.30532716,135.05,135.02,2.48575853]
[1765171837628,3.30532716,135.05,135.02,5.59575853]
[1765171840632,3.30532716,135.05,135.02,2.48575853]
[1765171840833,3.25,135.04,135.02,2.48575853]
[1765171841630,3.25,135.04,135.02,5.59575853]
[1765171842127,3.25,135.03,135.02,2.48575853]
[1765171842330,3.25,135.03,135.02,0.05050044]
[1765171842625,5.68525809,135.03,135.02,0.05050044]
[1765171843821,3.25,135.01,134.98,2.43525809]
[1765171844028,3.25,135.01,134.98,5.54525809]
[1765171844625,3.25,135.01,134.98,3.11]
[1765171844829,3.30374779,135.01,134.98,3.16525992]
[1765171845438,9.97014779,135.01,134.98,3.16525992]
[1765171845737,3.25,135.0,134.98,3.16525992]
[1765171848544,6.72014779,135.01,134.98,3.16525992]
[1765171848844,9.79014779,135.01,134.98,3.16525992]
[1765171849340,0.05374779,135.01,134.98,3.16525992]
[1765171849927,3.12374779,135.01,134.98,3.16525992]
[1765171850845,0.05374779,135.01,134.98,3.16525992]
[1765171852840,0.05374779,135.01,134.99,3.80189797]
[1765171853041,0.05374779,135.01,135.0,3.36]
[1765171858653,5.53839425,135.04,135.0,3.36]
[1765171858849,6.6646,135.05,135.02,3.36]
[1765171859051,5.53839309,135.04,135.02,3.36]
[1765171859249,9.7346,135.05,135.02,3.36]
[1765171859652,9.78889021,135.05,135.02,3.41677116]
[1765171860158,9.7349,135.04,135.02,3.41677116]
[1765171860355,3.07,135.03,135.02,3.41677116]
[1765171861763,6.6649,135.04,135.02,3.41677116]
[1765171864062,9.8849,135.04,135.02,3.41677116]
[1765171864458,3.22,135.03,135.02,0.05677116]
[1765171864959,3.22,135.01,134.98,3.23]
[1765171865758,3.22,134.99,134.98,0.05097899]
[1765171870165,6.6668,135.0,134.98,3.28097899]
[1765171870166,9.8868,135.0,134.98,3.28097899]
[1765171871765,0.04807628,135.01,134.98,3.28097899]
[1765171872958,3.26807628,135.01,134.98,3.28097899]
[1765171875463,3.22,134.99,134.98,0.05097899]
[1765171876261,3.22,134.97,134.95,66.49]
[1765171876459,3.22,134.97,134.91,7.03189797]
[1765171876659,3.22,134.95,134.91,3.23]
[1765171877258,0.04827501,134.94,134.92,3.2819973]
[1765171877658,0.04827501,134.94,134.93,3.80189797]
[1765171877861,0.04827501,134.94,134.93,7.03189797]
[1765171879168,0.04827501,134.94,134.93,3.23]
[1765171880870,3.23827501,134.94,134.92,0.0519973]
[1765171884269,9.90807501,134.94,134.92,0.0519973]
[1765171885676,9.90807501,134.94,134.92,3.3219973]
[1765171891079,9.90807501,134.94,134.92,0.0519973]
[1765171891377,3.19,134.93,134.92,0.0519973]
[1765171895978,9.90807501,134.94,134.92,3.3219973]
[1765171896184,6.71807501,134.94,134.92,3.3219973]
[1765171896573,9.90807501,134.94,134.92,3.3219973]
[1765171898580,3.19,134.93,134.92,0.0519973]
[1765171908475,6.71807501,134.94,134.92,3.2019973]
[1765171908677,0.04827501,134.94,134.93,3.15]
[1765171911890,10.0171,135.0,134.93,3.15]
[1765171912188,3.35,134.99,134.96,2.43583014]
[1765171912386,3.35,134.99,134.96,5.58583014]
[1765171912892,3.39771355,134.99,134.96,5.64142625]
[1765171913492,3.35,134.98,134.96,5.64142625]
[1765171914295,3.35,134.98,134.96,2.49142625]
[1765171915099,3.35,134.97,134.96,0.05559611]
[1765171919398,8.90449316,134.97,134.96,0.05559611]
[1765171920994,3.35,134.95,134.92,2.43583014]
[1765171921595,3.35,134.95,134.92,5.58583014]
[1765171921899,3.35,134.95,134.92,5.63903521]
[1765171921900,3.39761413,134.95,134.92,5.63903521]
[1765171922502,3.11,134.94,134.92,5.63903521]
[1765171922804,3.11,134.94,134.92,5.65903521]
[1765171923296,3.11,134.94,134.92,2.48903521]
[1765171923498,3.11,134.93,134.92,0.05320507]